bitfinex/quotes_ETHUSD_20241204
["timestamp","ask_amount","ask_price","bid_price","bid_amount"]
[1733350786099,1.08071582,3849.0,3848.1,0.1]
[1733350786599,1.08071582,3849.2,3848.1,0.1]
[1733350786806,0.88957058,3849.1,3848.1,0.1]
[1733350786955,1.32097505,3849.3,3848.1,0.1]
[1733350786956,1.08071582,3849.2,3848.1,0.1]
[1733350787161,1.12971259,3849.1,3848.1,0.1]
[1733350787489,2.65533093,3849.3,3848.1,0.1]
[1733350787678,1.12945533,3849.2,3848.1,0.1]
[1733350787883,0.24025923,3849.1,3848.0,3.0]
[1733350788082,0.24025923,3849.0,3848.1,0.1]
[1733350788264,0.24025923,3848.9,3848.1,0.1]
[1733350788462,0.24025923,3849.1,3848.1,0.1]
[1733350788664,0.24025923,3849.0,3848.1,0.1]
[1733350788979,2.59774,3849.5,3848.4,0.1]
[1733350788980,0.24025923,3849.1,3848.4,0.1]
[1733350789198,0.24025923,3849.0,3848.4,0.1]
[1733350789523,0.24025923,3849.0,3847.5,0.8909773]
[1733350789524,0.24025923,3849.7,3849.2,0.9881]
[1733350789695,0.24025923,3850.0,3849.2,0.9881]
[1733350789865,0.24025923,3849.9,3849.2,0.9881]
[1733350790065,0.24025923,3849.8,3849.2,0.9881]
[1733350790306,0.24025923,3849.7,3849.2,0.9881]
[1733350790481,0.24025923,3849.6,3849.2,0.9881]
[1733350790680,0.24025923,3849.5,3849.2,0.9881]
[1733350791006,0.24025923,3849.4,3849.2,0.9881]
[1733350791222,1.08071582,3850.1,3849.2,0.8881]
[1733350791223,0.24025923,3849.3,3849.2,0.8881]
[1733350791367,0.24025923,3849.3,3849.2,0.9881]
[1733350792912,0.24025923,3850.2,3849.2,0.9881]
[1733350793266,2.15177677,3850.8,3849.2,0.9881]
[1733350793267,0.24025923,3850.1,3849.2,0.9881]
[1733350793634,0.24025923,3850.0,3849.2,0.9881]
[1733350793814,0.24025923,3849.9,3849.2,0.9881]
[1733350794019,0.24025923,3849.8,3849.2,0.9881]
[1733350794188,0.24025923,3849.7,3849.2,0.9881]
[1733350794389,0.24025923,3849.6,3849.2,0.9881]
[1733350794601,0.24025923,3849.5,3849.2,0.9881]
[1733350794928,0.24025923,3849.4,3849.2,0.9881]
[1733350795128,0.24025923,3849.3,3849.2,0.9881]
[1733350798737,0.24025923,3849.3,3849.2,0.1]
[1733350799032,1.13054731,3849.3,3848.7,0.1]
[1733350799243,0.24025923,3849.2,3848.8,3.0]
[1733350799401,0.24025923,3849.1,3848.9,0.1]
[1733350799594,0.24025923,3849.0,3848.8,0.1]
[1733350799824,0.24025923,3848.9,3848.8,3.0]
[1733350800115,1.08071582,3849.3,3848.8,3.0]
[1733350800320,0.89026473,3849.2,3848.9,0.1]
[1733350800520,1.13197669,3849.2,3848.9,0.1]
[1733350800703,0.24171196,3849.1,3848.9,0.1]
[1733350801034,0.24171196,3849.0,3848.9,0.1]
[1733350801229,0.24171196,3849.0,3848.6,0.52085793]
[1733350801389,0.24171196,3848.9,3848.6,0.52085793]
[1733350801731,0.24171196,3848.8,3848.6,0.52085793]
[1733350801938,0.24171196,3848.7,3848.6,0.52085793]
[1733350802132,1.08071582,3849.2,3848.6,0.52085793]
[1733350802350,0.24170654,3848.7,3848.6,0.52085793]
[1733350805035,0.24170654,3848.7,3848.6,1.37995793]
[1733350805347,1.32242236,3849.2,3849.1,0.8989]
[1733350805495,2.21575626,3849.2,3849.1,0.8989]
[1733350805945,1.13504044,3849.2,3849.1,0.8989]
[1733350806299,0.24170654,3849.2,3849.1,0.8989]
[1733350806606,0.24170654,3849.3,3849.1,0.8989]
[1733350806823,1.08071582,3849.4,3849.3,3.0]
[1733350807028,3.55774955,3849.4,3849.3,3.0]
[1733350807337,4.09205573,3849.4,3849.1,0.8989]
[1733350807539,3.55938409,3849.3,3849.1,0.8989]
[1733350807741,2.47767942,3849.2,3849.1,0.8989]
[1733350808098,0.89443455,3849.2,3849.1,1.4489]
[1733350808297,1.34117884,3849.3,3849.1,0.69489]
[1733350808498,1.08170467,3849.3,3849.2,0.9262]
[1733350808750,1.08170467,3849.7,3849.2,0.9262]
[1733350809048,3.31795572,3849.6,3849.2,0.9262]
[1733350809198,2.2362678,3849.5,3849.2,0.9262]
[1733350809397,0.89465946,3849.4,3849.2,0.9262]
[1733350809625,1.08170467,3849.6,3849.5,3.0]
[1733350809940,3.31813522,3849.6,3849.5,3.0]
[1733350810141,3.31813522,3849.6,3849.2,0.9262]
[1733350810439,1.97623908,3849.5,3849.2,0.9262]
[1733350810744,0.89453441,3849.4,3849.2,1.07382]
[1733350811035,1.34178688,3849.5,3849.2,1.07382]
[1733350811339,1.08170467,3849.6,3849.2,1.07382]
[1733350811548,0.89467624,3849.5,3849.2,1.07382]
[1733350811716,1.08170467,3849.6,3849.2,1.07382]
[1733350811913,2.23650392,3849.5,3849.2,1.07382]
[1733350812127,0.89471704,3849.4,3849.2,1.07382]
[1733350812303,1.615022,3849.7,3848.7,0.123083]
[1733350812304,1.34178688,3849.6,3849.4,0.55]
[1733350812529,1.08170467,3850.0,3849.8,3.0]
[1733350812837,2.42381035,3850.1,3849.8,3.8575]
[1733350813150,2.42381035,3850.2,3849.8,3.8575]
[1733350813328,0.89502064,3850.1,3849.8,0.8575]
[1733350813534,0.89502064,3850.0,3849.8,3.8575]
[1733350813743,1.08170467,3850.1,3849.8,3.8575]
[1733350813946,0.89515336,3850.0,3849.8,3.8575]
[1733350814259,0.89515336,3849.9,3849.8,3.8575]
[1733350814457,0.89515336,3850.0,3849.8,3.8575]
[1733350814661,0.89515336,3849.9,3849.8,0.8575]
[1733350814820,0.89515336,3849.9,3849.8,3.8575]
[1733350815023,0.89515336,3849.9,3849.8,0.8575]
[1733350815223,1.97685803,3850.0,3849.8,0.8575]
[1733350815553,0.89480442,3849.9,3849.8,0.8575]
[1733350815856,1.08170467,3850.2,3849.8,0.8575]
[1733350816970,1.97632771,3850.2,3849.8,0.8575]
[1733350817130,0.89462304,3850.1,3849.8,0.8575]
[1733350817467,1.08170467,3850.3,3849.8,0.8575]
[1733350818128,1.08170467,3850.2,3849.8,3.8575]
[1733350818330,1.08170467,3850.2,3849.8,0.8575]
[1733350818631,1.97598751,3850.2,3849.8,3.8575]
[1733350818828,1.97598751,3850.1,3849.8,0.8575]
[1733350819028,0.89428284,3850.0,3849.8,0.8575]
[1733350819227,1.08170467,3850.2,3849.8,3.8575]
[1733350819463,1.97612266,3850.2,3849.8,0.8575]
[1733350819771,0.89441799,3850.1,3849.8,0.8575]
[1733350819925,1.08170467,3850.2,3849.8,3.8575]
[1733350820131,0.89429847,3850.1,3849.8,3.8575]
[1733350820382,1.08170467,3850.3,3849.8,0.8575]
[1733350820733,1.97586131,3850.2,3849.8,0.8575]
[1733350821044,0.89415664,3850.1,3849.8,0.8575]
[1733350821257,1.615022,3850.4,3849.8,0.8575]
[1733350821258,1.08170467,3850.3,3849.8,0.8575]
[1733350821462,1.97595388,3850.3,3849.8,3.8575]
[1733350821786,1.08170467,3850.1,3849.4,0.8805]
[1733350822068,1.97595388,3850.1,3849.8,3.0]
[1733350822244,0.89424921,3850.0,3849.8,3.0]
[1733350822446,0.89424921,3849.9,3849.4,1.39162771]
[1733350822646,1.08170467,3850.0,3849.4,1.39162771]
[1733350822845,1.97595388,3850.0,3849.4,0.51112771]
[1733350823046,1.97595388,3849.9,3849.8,3.0]
[1733350823455,1.08170467,3849.9,3848.7,1.020383]
[1733350823653,1.08148133,3849.6,3848.7,1.020383]
[1733350823853,1.97573054,3849.5,3848.7,1.020383]
[1733350824041,0.89424921,3849.4,3848.7,1.020383]
[1733350824250,1.97546131,3849.4,3848.7,1.020383]
[1733350824586,0.89397998,3849.3,3848.7,1.020383]
[1733350824889,0.89390085,3849.2,3848.7,0.123083]
[1733350825172,1.08148133,3849.4,3848.7,0.123083]
[1733350825745,1.97542905,3849.3,3848.7,0.123083]
[1733350825950,1.97542905,3849.2,3849.0,3.0]
[1733350826167,0.89394772,3849.1,3848.7,0.123083]
[1733350826346,0.89385757,3849.0,3848.7,0.123083]
[1733350826553,1.08148133,3849.1,3849.0,3.0]
[1733350826852,1.615022,3849.1,3848.9,3.0]
[1733350827056,1.0809572,3849.0,3848.9,3.0]
[1733350827263,1.0809572,3849.0,3848.7,0.123083]
[1733350827469,0.89383788,3848.9,3848.7,0.123083]
[1733350827634,1.0809572,3849.0,3848.9,3.0]
[1733350827849,0.89409606,3849.0,3848.7,0.123083]
[1733350828178,1.0809572,3848.9,3848.7,0.123083]
[1733350828332,1.0809572,3848.8,3848.7,0.123083]
[1733350828761,0.89409606,3848.8,3848.7,0.123083]
[1733350829081,1.34114409,3849.0,3848.9,3.0]
[1733350829082,2.4227831,3849.0,3848.9,3.0]
[1733350829279,1.97604549,3849.0,3848.7,0.123083]
[1733350829574,1.97604549,3849.0,3848.9,3.0]
[1733350829746,0.89440648,3849.0,3848.7,0.123083]
[1733350829955,1.08183857,3848.8,3848.7,0.123083]
[1733350830372,1.97624505,3848.8,3848.7,0.123083]
[1733350832143,3.85057257,3848.8,3848.7,0.123083]
[1733350832450,1.615022,3848.8,3848.7,0.123083]
[1733350832570,2.5101079,3848.8,3848.7,0.123083]
[1733350832767,3.85273675,3848.8,3848.7,0.123083]
[1733350833002,2.5101079,3848.8,3848.7,0.123083]
[1733350833206,3.85273675,3848.8,3848.7,0.123083]
[1733350834186,0.8950859,3848.8,3848.7,1.51257523]
[1733350834505,0.8950859,3848.8,3848.7,1.66383275]
[1733350834688,1.08285894,3849.1,3848.7,1.66383275]
[1733350834877,3.94260859,3849.4,3848.7,1.66383275]
[1733350834878,1.08285894,3849.3,3848.7,1.51257523]
[1733350835083,0.89573623,3849.2,3848.9,0.8999]
[1733350835279,1.08285894,3849.3,3848.9,0.8999]
[1733350835280,2.42645729,3849.4,3848.9,0.8999]
[1733350835513,2.42645729,3849.5,3848.9,0.8999]
[1733350835816,0.89583199,3849.4,3848.9,0.8999]
[1733350835987,0.89583199,3849.4,3849.0,1.05655519]
[1733350836189,1.97869093,3849.3,3849.0,1.05655519]
[1733350836405,0.89583199,3849.2,3849.0,1.05655519]
[1733350836817,1.08285894,3849.4,3849.0,1.05655519]
[1733350837023,1.97867072,3849.3,3849.1,0.873]
[1733350837226,1.08285894,3849.5,3849.3,0.873]
[1733350837409,1.08285894,3849.6,3849.4,0.55]
[1733350837594,2.42666476,3849.7,3849.6,3.0]
[1733350837918,1.97878069,3849.7,3849.6,5.59767]
[1733350838420,1.92878069,3849.7,3849.6,5.59767]
[1733350838622,0.89592175,3849.7,3849.6,5.59767]
[1733350838919,0.89635354,3849.7,3849.6,5.59767]
[1733350839087,0.89635354,3849.8,3849.7,5.5976]
[1733350839423,1.34451268,3849.9,3849.8,5.59753]
[1733350839582,2.24090648,3849.9,3849.8,5.59753]
[1733350840283,0.8963938,3849.9,3849.8,5.59753]
[1733350842020,1.34451268,3850.1,3850.0,2.5974]
[1733350842229,1.615022,3850.2,3850.0,5.5974]
[1733350842431,1.615022,3850.2,3850.1,5.59733]
[1733350842632,1.615022,3850.2,3850.1,2.59733]
[1733350842633,0.89640727,3850.2,3850.1,2.59733]
[1733350842841,3.85604017,3850.2,3850.1,2.59733]
[1733350843925,2.24101817,3850.2,3850.1,2.59733]
[1733350844798,3.86751435,3850.2,3850.1,2.59733]
[1733350845134,0.89640727,3850.2,3850.1,2.59733]
[1733350845432,2.24101817,3850.2,3850.1,2.59733]
[1733350846393,2.24203033,3850.2,3850.1,6.48833]
[1733350846830,0.89681213,3850.2,3850.1,6.48833]
[1733350847192,1.34504676,3850.3,3850.2,5.59726]
[1733350847390,2.24177118,3850.3,3850.2,5.59726]
[1733350847845,0.89672442,3850.3,3850.2,5.59726]
[1733350848248,2.24177118,3850.3,3850.2,5.59726]
[1733350848417,3.32690438,3850.3,3850.2,5.59726]
[1733350848618,2.24177118,3850.3,3850.2,5.59726]
[1733350848825,1.98183314,3850.3,3850.2,5.59726]
[1733350849543,1.98165877,3850.3,3850.2,5.59726]
[1733350850335,2.24177118,3850.3,3850.2,5.59726]
[1733350850841,3.05521702,3850.8,3850.2,5.59726]
[1733350850842,1.08498385,3850.5,3850.2,5.59726]
[1733350851048,0.34411243,3850.8,3850.5,3.0]
[1733350851049,2.4304479,3850.6,3850.5,3.0]
[1733350851259,1.98186454,3850.6,3850.5,2.59706]
[1733350851461,1.98186454,3850.6,3850.5,5.59706]
[1733350851986,3.32657283,3850.6,3850.5,5.59706]
[1733350852150,1.98161944,3850.6,3850.5,5.59706]
[1733350852355,0.89663559,3850.6,3850.5,6.1225822]
[1733350852556,1.08498385,3850.7,3850.6,5.59699]
[1733350852759,1.98152913,3850.7,3850.6,5.59699]
[1733350853174,2.24149867,3850.7,3850.6,5.59699]
[1733350853485,0.89654528,3850.7,3850.6,5.59699]
[1733350855645,1.98098333,3850.7,3850.6,5.59699]
[1733350856050,0.89654528,3850.7,3850.6,5.59699]
[1733350857897,1.08443805,3850.7,3850.6,5.59699]
[1733350858100,1.98098333,3850.7,3850.6,5.59699]
[1733350858284,0.89654528,3850.7,3850.6,5.59699]
[1733350858491,1.98098333,3850.7,3850.6,5.59699]
[1733350859714,0.89654528,3850.7,3850.6,5.59699]
[1733350860780,1.42855048,3850.8,3850.7,5.59693]
[1733350860981,1.24037632,3850.8,3850.7,5.59693]
[1733350862024,2.32435146,3850.8,3850.7,5.59693]
[1733350862518,2.32435146,3850.8,3850.7,3.67436967]
[1733350862828,2.32435146,3850.8,3850.7,5.59693]
[1733350863393,2.32435146,3850.8,3850.7,4.51548666]
[1733350864138,1.24037632,3850.8,3850.7,4.51548666]
[1733350864622,0.34411243,3850.8,3850.7,4.51548666]
[1733350864782,1.23988703,3850.8,3850.7,4.51548666]
[1733350865161,2.32386217,3850.8,3850.7,4.51548666]
[1733350866631,1.23988703,3850.8,3850.7,4.51548666]
[1733350866798,2.32386217,3850.8,3850.7,4.51548666]
[1733350867896,1.23988703,3850.8,3850.7,4.51548666]
[1733350868095,0.34411243,3850.8,3850.7,4.51548666]
[1733350869811,1.48152838,3850.8,3850.7,4.51548666]
[1733350870418,0.5865495,3850.8,3850.7,4.51548666]
[1733350871132,1.48158775,3850.8,3850.7,4.51548666]
[1733350871423,1.48159759,3850.8,3850.7,4.51548666]
[1733350872319,0.5865495,3850.8,3850.7,4.51548666]
[1733350872524,1.48194809,3850.8,3850.7,4.51548666]
[1733350872960,1.48186701,3850.8,3850.7,4.51548666]
[1733350873164,0.5865495,3850.8,3850.7,4.51548666]
[1733350873377,0.5865495,3850.8,3850.7,5.44758666]
[1733350873882,9.5e-06,3850.8,3850.7,5.99758666]
[1733350875431,9.5e-06,3850.8,3850.7,6.58190015]
[1733350876057,0.89586106,3851.5,3851.0,2.59667]
[1733350876058,1.9798362,3851.3,3851.0,2.59667]
[1733350876234,1.9798362,3851.3,3851.1,2.59666]
[1733350876235,0.89586106,3851.2,3851.1,2.59666]
[1733350876630,1.9798362,3851.3,3851.1,2.59666]
[1733350876832,1.9798362,3851.3,3851.2,2.59659]
[1733350877142,1.08397514,3851.3,3851.2,2.59659]
[1733350877559,1.9798362,3851.3,3851.2,2.59659]
[1733350878229,1.9798362,3851.3,3851.2,3.44779]
[1733350878573,3.32353146,3851.3,3851.2,6.44779]
[1733350878872,1.30198849,3851.3,3851.2,7.902236]
[1733350879071,1.3018981,3851.3,3851.2,7.902236]
[1733350879283,1.62696254,3851.7,3851.3,6.14652]
[1733350879449,0.0377328,3851.8,3851.7,5.59625]
[1733350880834,0.0377328,3851.8,3851.7,6.44525]
[1733350881034,0.0377328,3851.8,3851.7,7.349407]
[1733350883334,0.0377328,3851.8,3851.7,6.44525]
[1733350884472,0.0377328,3851.8,3851.7,5.59625]
[1733350884840,1.66469534,3851.8,3851.2,0.50629166]
[1733350885053,3.49543782,3851.7,3851.5,3.0]
[1733350885234,1.34366105,3851.6,3851.5,3.0]
[1733350885436,1.34366105,3851.6,3851.3,5.59652]
[1733350885657,1.62561703,3851.4,3851.3,5.59652]
[1733350885832,0.24197836,3851.4,3851.3,5.59652]
[1733350886980,1.58563941,3851.4,3851.3,5.59652]
[1733350887182,0.24197836,3851.4,3851.3,5.59652]
[1733350888213,2.21125644,3851.4,3851.3,5.59652]
[1733350888407,1.62561703,3851.4,3851.3,5.59652]
[1733350888797,2.15177677,3851.6,3851.3,5.59652]
[1733350888798,1.62561703,3851.5,3851.3,5.59652]
[1733350889151,2.15177677,3851.5,3851.3,5.59652]
[1733350889440,1.62484999,3851.4,3851.3,5.59652]
[1733350889738,2.15177677,3851.5,3851.4,5.59645]
[1733350889943,2.15177677,3851.6,3851.5,2.59639]
[1733350891394,2.70831152,3851.7,3851.5,2.59639]
[1733350891619,2.70831152,3851.7,3851.5,2.59633]
[1733350892231,2.16740785,3851.6,3851.5,2.59633]
[1733350892435,2.74604432,3851.8,3851.5,2.59633]
[1733350892436,2.16740785,3851.7,3851.5,2.59633]
[1733350892966,2.16740785,3851.6,3851.5,2.59633]
[1733350894058,1.62634972,3851.6,3851.5,2.59633]
[1733350894261,2.16740785,3851.6,3851.5,2.59633]
[1733350894644,2.74604432,3851.8,3851.3,3.0]
[1733350894645,2.16740785,3851.7,3851.3,3.0]
[1733350894960,2.16740785,3851.7,3851.6,2.59632]
[1733350895757,0.0377328,3851.8,3851.6,2.59632]
[1733350895758,2.20514065,3851.8,3851.6,2.59632]
[1733350896258,2.20514065,3851.8,3851.7,2.59625]
[1733350896470,1.66428371,3851.8,3851.7,2.59625]
[1733350896631,0.0377328,3851.8,3851.7,2.59625]
[1733350898360,1.38259574,3851.8,3851.7,2.59625]
[1733350898776,1.12195928,3851.8,3851.7,2.59625]
[1733350899169,2.01846703,3851.8,3851.7,2.59625]
[1733350901681,2.27910349,3851.8,3851.7,2.59625]
[1733350902586,2.01822131,3851.8,3851.7,5.59625]
[1733350903193,0.93424055,3851.8,3851.7,5.59625]
[1733350906579,0.93443264,3851.8,3851.7,5.59625]
[1733350907781,0.93457774,3851.8,3851.7,5.59625]
[1733350908545,0.79923217,3851.8,3851.7,5.59625]
[1733350908741,1.08398076,3851.9,3851.8,5.59618]
[1733350909146,1.08398076,3852.0,3851.8,3.0]
[1733350909345,1.08398076,3852.0,3851.9,5.59612]
[1733350909546,1.08398076,3852.0,3851.9,2.59612]
[1733350909788,1.08485209,3852.0,3851.9,2.59612]
[1733350910147,1.34526741,3852.0,3851.9,2.59612]
[1733350910549,1.08512536,3852.0,3851.9,2.59612]
[1733350910951,1.08512536,3852.0,3851.6,1.43373814]
[1733350910952,1.34526741,3852.0,3851.6,1.43373814]
[1733350911151,1.08521448,3851.9,3851.8,2.59618]
[1733350911400,2.97181832,3852.0,3851.9,2.59612]
[1733350911551,1.08541339,3852.0,3851.9,2.59612]
[1733350911751,2.97181832,3852.0,3851.9,2.59612]
[1733350911965,1.34526741,3852.0,3851.9,2.59612]
[1733350912188,2.97181832,3852.0,3851.9,2.59612]
[1733350912342,1.34526741,3852.0,3851.9,2.59612]
[1733350912543,1.34666034,3852.0,3851.9,2.59612]
[1733350912791,2.97321125,3852.0,3851.9,2.59612]
[1733350912984,1.34666034,3852.0,3851.9,2.59612]
[1733350913297,2.97321125,3852.0,3851.9,2.59612]
[1733350914158,1.34666034,3852.0,3851.9,2.59612]
[1733350914343,2.97510002,3852.0,3851.9,2.59612]
[1733350915578,1.34666034,3852.0,3851.9,2.59612]
[1733350915899,2.97532456,3852.0,3851.9,2.59612]
[1733350916096,1.34666034,3852.0,3851.9,2.59612]
[1733350916249,2.97532456,3852.0,3851.9,2.59612]
[1733350916887,2.97532456,3852.0,3851.6,4.03000814]
[1733350916888,1.08591716,3852.0,3851.6,4.03000814]
[1733350917091,2.4325775,3852.0,3851.9,2.59612]
[1733350917248,2.4325775,3852.1,3851.9,2.59612]
[1733350917453,1.08591716,3852.1,3852.0,2.59605]
[1733350917777,1.34714644,3852.1,3852.0,2.59605]
[1733350918013,2.97581066,3852.1,3852.0,2.59605]
[1733350918327,1.34714644,3852.1,3851.6,1.41193814]
[1733350918538,2.71533675,3852.2,3852.0,2.59605]
[1733350918722,3.51987756,3852.1,3852.0,2.59605]
[1733350919034,1.34732318,3852.1,3851.8,2.59616]
[1733350919331,2.71533675,3852.2,3851.8,2.59616]
[1733350919332,3.52064527,3852.0,3851.8,2.59616]
[1733350919536,1.34732318,3851.9,3851.8,2.59616]
[1733350919731,2.9775968,3851.9,3851.8,5.59616]
[1733350920487,1.34732318,3851.9,3851.8,5.59616]
[1733350921089,1.34826238,3851.9,3851.8,5.59616]
[1733350921532,2.97884722,3851.9,3851.8,5.59616]
[1733350921828,1.34826238,3851.9,3851.8,5.59616]
[1733350922327,3.52158447,3851.9,3851.8,5.59616]
[1733350922692,1.34826238,3851.9,3851.8,5.59616]
[1733350922928,3.52253456,3851.9,3851.8,5.59616]
[1733350923135,1.34826238,3851.9,3851.5,2.59637]
[1733350923435,1.63073042,3851.6,3851.5,5.59639]
[1733350923632,2.17445522,3851.7,3851.6,5.59632]
[1733350923633,1.63073042,3851.7,3851.6,5.59632]
[1733350923956,2.97879329,3851.7,3851.6,5.59632]
[1733350924404,1.34806287,3851.7,3851.6,5.59632]
[1733350924801,2.97886175,3851.7,3851.6,5.59632]
[1733350925125,1.34806287,3851.7,3851.6,5.59632]
[1733350925328,1.3484029,3851.7,3851.6,5.59632]
[1733350926250,1.2326169,3851.7,3851.6,5.59632]
[1733350927163,3.40707212,3851.7,3851.6,5.59632]
[1733350927448,2.86267816,3851.7,3851.6,5.59632]
[1733350927616,3.40707212,3851.7,3851.6,5.59632]
[1733350928530,4.305342,3851.7,3851.6,5.59632]
[1733350928908,2.13088678,3851.7,3851.6,5.59632]
[1733350929129,3.76043487,3851.7,3851.6,5.59632]
[1733350929327,2.13088678,3851.7,3851.6,5.59632]
[1733350929557,4.305342,3851.7,3851.6,5.59632]
[1733350930059,2.17445522,3851.7,3851.6,5.59632]
[1733350930227,3.07255423,3851.7,3851.6,5.59632]
[1733350930435,0.89809901,3851.7,3851.6,5.59632]
[1733350931631,3.07255423,3851.7,3851.6,5.59632]
[1733350931844,0.89809901,3851.7,3851.6,5.59632]
[1733350932027,2.5271869,3851.7,3851.6,5.59632]
[1733350932458,0.89809901,3851.7,3851.6,5.59632]
[1733350932756,2.5267852,3851.7,3851.6,5.59632]
[1733350933957,0.89809901,3851.7,3851.6,5.59632]
[1733350934170,2.52658281,3851.7,3851.6,5.59632]
[1733350935066,0.89809901,3851.7,3851.6,5.59632]
[1733350935357,2.52658281,3851.7,3851.6,5.59632]
[1733350935558,0.89809901,3851.7,3851.6,5.59632]
[1733350936318,2.24450805,3851.7,3851.6,5.59632]
[1733350936786,3.87266183,3851.7,3851.6,5.59632]
[1733350937182,2.24450805,3851.7,3851.6,5.59632]
[1733350937688,3.87222441,3851.7,3851.6,5.59632]
[1733350937907,2.24450805,3851.7,3851.6,5.59632]
[1733350938933,4.41896327,3851.7,3851.6,5.59632]
[1733350939137,3.8727956,3851.7,3851.6,5.59632]
[1733350939366,3.33004197,3851.7,3851.6,6.55965127]
[1733350939567,2.43194296,3851.7,3851.6,6.55965127]
[1733350939878,3.32920147,3851.7,3851.6,6.55965127]
[1733350940260,3.32920147,3851.7,3851.6,5.59632]
[1733350940803,3.32920147,3851.7,3851.6,7.05602]
[1733350941076,6.9e-06,3851.9,3851.8,5.59618]
[1733350941277,1.62828755,3852.3,3852.1,7.05568]
[1733350941479,1.62828755,3852.3,3852.2,2.59591]
[1733350941637,5.41e-06,3852.3,3852.2,7.965769]
[1733350941844,1.79503029,3852.9,3852.4,0.8717]
[1733350941845,2.17445522,3852.9,3852.4,0.8717]
[1733350942277,2.17445522,3853.0,3852.9,3.46714]
[1733350942480,2.33804202,3853.1,3853.0,2.59538]
[1733350942870,0.1635868,3853.1,3853.0,2.59538]
[1733350951694,0.1635868,3853.1,3852.6,4.44000121]
[1733350951915,0.1635868,3853.1,3852.9,2.5954]
[1733350953413,0.1635868,3853.1,3853.0,2.59538]
[1733350956315,0.1635868,3853.1,3852.9,3.0]
[1733350956620,0.1635868,3853.1,3852.9,5.59543]
[1733350957085,0.1635868,3853.1,3853.0,2.59538]
[1733350962398,0.1635868,3853.1,3853.0,3.54688]
[1733350965809,0.1635868,3853.1,3853.0,2.46608569]
[1733350966125,0.1635868,3853.1,3853.0,0.9515]
[1733350966519,0.1635868,3853.1,3853.0,3.54688]
[1733350969893,0.1635868,3853.1,3853.0,2.59538]
[1733350976000,0.1635868,3853.1,3853.0,7.459942]
[1733350978389,0.1635868,3853.1,3853.0,8.009942]
[1733350980796,6.8e-06,3853.1,3853.0,8.009942]
[1733350982995,2.70727716,3854.6,3853.0,8.009942]
[1733350982996,1.62374597,3854.7,3854.1,0.9032]
[1733350983208,24.59162923,3855.0,3854.1,0.9032]
[1733350983209,23.29460923,3855.0,3854.9,3.0]
[1733350983407,23.29460923,3855.0,3854.9,7.0473]
[1733350983408,17.18145797,3855.0,3854.9,7.0473]
[1733350983632,12.05139743,3855.0,3854.9,7.0473]
[1733350984022,10.75437743,3855.0,3854.9,7.0473]
[1733350984210,5.56629743,3855.0,3854.9,7.0473]
[1733350984406,5.56629743,3855.0,3854.9,8.08358794]
[1733350984645,5.56629743,3855.0,3854.9,8.43658998]
[1733350985056,2.2746843,3855.0,3854.9,8.63658998]
[1733350985204,3.33,3855.4,3854.9,8.63658998]
[1733350985205,3.33,3855.4,3855.3,4.6773]
[1733350985408,3.33,3855.4,3855.3,7.62413204]
[1733350985682,3.33,3855.4,3855.3,8.64593424]
[1733350986287,0.73624,3855.4,3855.3,8.64593424]
[1733350986448,1e-05,3855.4,3855.3,8.2929322]
[1733350986649,1e-05,3855.4,3855.3,8.64593424]
[1733350989661,1e-05,3855.4,3855.3,9.17429734]
[1733350991844,1e-05,3855.4,3855.3,9.4150868]
[1733350992186,1e-05,3855.4,3855.3,9.6150868]
[1733350993679,1e-05,3855.4,3855.3,9.06208476]
[1733350995687,1e-05,3855.4,3855.3,8.6212953]
[1733351000395,1e-05,3855.4,3855.3,9.14123167]
[1733351001149,3.33,3855.8,3855.4,2.22531462]
[1733351001452,1.73713,3856.2,3856.1,0.55]
[1733351001791,1.73713,3856.2,3856.1,7.11219]
[1733351002558,0.71140856,3856.2,3856.1,7.11219]
[1733351002858,0.71140856,3856.2,3856.1,8.63256776]
[1733351003975,2.36180856,3856.3,3856.1,9.08065928]
[1733351004165,2.36180856,3856.3,3856.2,3.55]
[1733351005675,2.36180856,3856.3,3856.2,4.4869]
[1733351006416,2.36180856,3856.3,3856.2,4.80683637]
[1733351006615,2.36180856,3856.3,3856.2,6.00303794]
[1733351007572,2.36180856,3856.3,3856.2,8.59625794]
[1733351007791,8.56e-06,3856.3,3856.2,8.59625794]
[1733351008886,8.56e-06,3856.4,3856.3,6.14315]
[1733351009222,8.56e-06,3856.4,3856.3,6.46308637]
[1733351009422,8.56e-06,3856.4,3856.3,7.67981799]
[1733351011317,8.56e-06,3856.4,3856.3,7.99129135]
[1733351011483,8.56e-06,3856.4,3856.3,8.92269135]
[1733351011999,1e-05,3856.8,3856.7,3.52429]
[1733351012187,6.8e-06,3856.9,3856.8,6.14282]
[1733351012400,6.8e-06,3856.9,3856.8,7.14411689]
[1733351012603,6.8e-06,3856.9,3856.8,7.46405326]
[1733351013222,6.8e-06,3856.9,3856.8,8.39545326]
[1733351013922,6.8e-06,3856.9,3856.8,8.07551689]
[1733351014516,6.8e-06,3856.9,3856.8,7.60522278]
[1733351016843,2.0337968,3857.4,3856.8,6.67382278]
[1733351017044,0.7411,3858.7,3857.3,6.34248]
[1733351017337,0.7411,3858.7,3858.1,3.14194]
[1733351017939,0.7411,3858.7,3858.1,6.14194]
[1733351018143,0.7411,3858.7,3858.1,7.127754]
[1733351018465,4.0711,3858.9,3858.1,7.127754]
[1733351018613,1e-05,3858.2,3858.1,7.127754]
[1733351019724,1e-05,3858.2,3858.1,7.63699862]
[1733351020224,1e-05,3859.8,3859.7,6.14087]
[1733351020558,1e-05,3859.8,3859.7,7.26497]
[1733351020931,1e-05,3859.8,3859.7,7.61832304]
[1733351021129,15.93609958,3860.4,3860.3,3.71457]
[1733351021345,15.93609958,3860.4,3860.3,7.636027]
[1733351021858,15.93609958,3860.4,3860.3,7.26457]
[1733351022959,0.75,3860.2,3860.0,3.55]
[1733351023165,0.75,3860.2,3860.1,3.0]
[1733351023415,0.75,3860.2,3860.1,5.5906]
[1733351023553,0.75,3860.2,3860.1,6.1406]
[1733351027205,0.75,3860.2,3859.8,2.84141168]
[1733351027380,0.75,3860.2,3860.0,0.55]
[1733351027902,0.75,3860.2,3860.1,3.55]
[1733351028220,0.75,3860.2,3860.1,2.33154]
[1733351028406,0.75,3860.2,3860.1,5.88154]